[Event "December 19 Late 2023"]
[Site "https://www.chess.com"]
[Date "2023.12.19"]
[Round "2"]
[White "Igel2023"]
[Black "Novikova, Galina"]
[Result "0-1"]
[Board "148"]
[TimeControl "180+1"]
[BlackFideId "4157095"]
[WhiteElo "2244"]
[BlackElo "1972"]
[BlackTeam "RUS"]
[WhiteClock "0:00:00"]
[BlackClock "0:00:10"]

1. e4 {[%clk 0:02:57]}  e6 {[%clk 0:02:59]} 2. d4 {[%clk 0:02:56]}  d5 {[%clk 0:03:00]} 3. Nd2 {[%clk 0:02:56]}  Nc6 {[%clk 0:03:00]} 4. Ngf3 {[%clk 0:02:44]}  g5 {[%clk 0:03:00]} 5. exd5 {[%clk 0:02:42]}  exd5 {[%clk 0:03:00]} 6. Bb5 {[%clk 0:02:42]}  Qe7+ {[%clk 0:03:00]} 7. Be2 {[%clk 0:02:35]}  g4 {[%clk 0:02:59]} 8. Ne5 {[%clk 0:02:25]}  Nxe5 {[%clk 0:02:58]} 9. dxe5 {[%clk 0:02:26]}  Qxe5 {[%clk 0:02:57]} 10. O-O {[%clk 0:02:24]}  Bd6 {[%clk 0:02:51]} 11. g3 {[%clk 0:02:22]}  Be6 {[%clk 0:02:38]} 12. Bxg4 {[%clk 0:02:19]}  O-O-O {[%clk 0:02:38]} 13. Re1 {[%clk 0:02:16]}  Qg7 {[%clk 0:02:30]} 14. Bxe6+ {[%clk 0:02:09]}  fxe6 {[%clk 0:02:30]} 15. Rxe6 {[%clk 0:02:10]}  h5 {[%clk 0:02:26]} 16. Nf3 {[%clk 0:02:01]}  h4 {[%clk 0:02:23]} 17. Bg5 {[%clk 0:01:57]}  hxg3 {[%clk 0:02:15]} 18. fxg3 {[%clk 0:01:29]}  Nh6 {[%clk 0:01:19]} 19. Bxd8 {[%clk 0:01:20]}  Rxd8 {[%clk 0:01:08]} 20. Qd4 {[%clk 0:01:09]}  Qf8 {[%clk 0:01:01]} 21. Kg2 {[%clk 0:00:58]}  Kb8 {[%clk 0:00:41]} 22. Rf1 {[%clk 0:00:57]}  Nf5 {[%clk 0:00:33]} 23. Qf6 {[%clk 0:00:32]}  Ne3+ {[%clk 0:00:32]} 24. Kg1 {[%clk 0:00:30]}  Nxf1 {[%clk 0:00:29]} 25. Kxf1 {[%clk 0:00:25]}  Qg8 {[%clk 0:00:24]} 26. Kg2 {[%clk 0:00:23]}  a6 {[%clk 0:00:24]} 27. Nd4 {[%clk 0:00:21]}  Rf8 {[%clk 0:00:24]} 28. Qg6 {[%clk 0:00:20]}  Qh8 {[%clk 0:00:23]} 29. c3 {[%clk 0:00:18]}  Rg8 {[%clk 0:00:21]} 30. Qf5 {[%clk 0:00:15]}  Rf8 {[%clk 0:00:19]} 31. Qxd5 {[%clk 0:00:13]}  Qg8 {[%clk 0:00:16]} 32. Rxd6 {[%clk 0:00:09]}  cxd6 {[%clk 0:00:14]} 33. Qxd6+ {[%clk 0:00:10]}  Ka8 {[%clk 0:00:12]} 34. Ne6 {[%clk 0:00:08]}  Rc8 {[%clk 0:00:11]} 35. Nc7+ {[%clk 0:00:07]}  Ka7 {[%clk 0:00:11]} 36. Qd4+ {[%clk 0:00:03]}  Kb8 {[%clk 0:00:12]} 37. Nd5 {[%clk 0:00:04]}  Qe8 {[%clk 0:00:10]} 38. c4 {[%clk 0:00:00]}  Qc6 {[%clk 0:00:10]} 0-1

[Event "December 19 Late 2023"]
[Site "https://www.chess.com"]
[Date "2023.12.19"]
[Round "2"]
[White "Nilsson, Joakim"]
[Black "Bolivar Losada, Jeison"]
[Result "1-0"]
[Board "152"]
[TimeControl "180+1"]
[WhiteFideId "1723383"]
[BlackFideId "4404793"]
[WhiteElo "2143"]
[BlackElo "2036"]
[WhiteTeam "SWE"]
[BlackTeam "COL"]
[WhiteClock "0:02:03"]
[BlackClock "0:00:04"]

1. d4 {[%clk 0:03:00]}  Nf6 {[%clk 0:02:57]} 2. Nf3 {[%clk 0:03:00]}  d5 {[%clk 0:02:45]} 3. Bg5 {[%clk 0:02:49]}  Ne4 {[%clk 0:02:33]} 4. Bf4 {[%clk 0:02:49]}  g6 {[%clk 0:02:33]} 5. Nbd2 {[%clk 0:02:49]}  Bg7 {[%clk 0:02:32]} 6. e3 {[%clk 0:02:49]}  Nf6 {[%clk 0:02:31]} 7. Be2 {[%clk 0:02:48]}  O-O {[%clk 0:02:31]} 8. h3 {[%clk 0:02:48]}  c5 {[%clk 0:02:31]} 9. c3 {[%clk 0:02:48]}  Nc6 {[%clk 0:02:29]} 10. O-O {[%clk 0:02:48]}  b6 {[%clk 0:02:22]} 11. Qa4 {[%clk 0:02:46]}  Bd7 {[%clk 0:02:22]} 12. Qa3 {[%clk 0:02:42]}  Ne4 {[%clk 0:02:11]} 13. Nxe4 {[%clk 0:02:39]}  dxe4 {[%clk 0:02:12]} 14. Nd2 {[%clk 0:02:40]}  cxd4 {[%clk 0:01:41]} 15. cxd4 {[%clk 0:02:40]}  e5 {[%clk 0:01:41]} 16. dxe5 {[%clk 0:02:40]}  Nxe5 {[%clk 0:01:25]} 17. Nxe4 {[%clk 0:02:40]}  Bc6 {[%clk 0:01:11]} 18. Rfd1 {[%clk 0:02:38]}  Qb8 {[%clk 0:01:00]} 19. Nd6 {[%clk 0:02:25]}  Rd8 {[%clk 0:00:51]} 20. Rac1 {[%clk 0:02:20]}  Bd7 {[%clk 0:00:24]} 21. Nc4 {[%clk 0:02:12]}  Nxc4 {[%clk 0:00:15]} 22. Bxc4 {[%clk 0:02:11]}  Be5 {[%clk 0:00:08]} 23. Qe7 {[%clk 0:02:02]}  Bxf4 {[%clk 0:00:03]} 24. Qxf7+ {[%clk 0:02:02]}  Kh8 {[%clk 0:00:04]} 25. Qf6# {[%clk 0:02:03]} 1-0

[Event "December 19 Late 2023"]
[Site "https://www.chess.com"]
[Date "2023.12.19"]
[Round "2"]
[White "Slade, Theodore"]
[Black "Kovacevic, Radmila"]
[Result "1-0"]
[Board "154"]
[TimeControl "180+1"]
[WhiteFideId "426547"]
[BlackFideId "933171"]
[WhiteElo "1964"]
[BlackElo "2052"]
[WhiteTeam "ENG"]
[BlackTeam "SRB"]
[WhiteClock "0:00:23"]
[BlackClock "0:00:25"]

1. d4 {[%clk 0:03:00]}  e5 {[%clk 0:03:00]} 2. dxe5 {[%clk 0:03:01]}  Nc6 {[%clk 0:03:00]} 3. Nf3 {[%clk 0:03:01]}  Qe7 {[%clk 0:03:00]} 4. Bf4 {[%clk 0:03:01]}  Qb4+ {[%clk 0:03:00]} 5. Bd2 {[%clk 0:03:01]}  Qxb2 {[%clk 0:03:00]} 6. Nc3 {[%clk 0:03:01]}  Bb4 {[%clk 0:03:00]} 7. Rb1 {[%clk 0:03:01]}  Qxc3 {[%clk 0:03:01]} 8. Bxc3 {[%clk 0:02:59]}  Bxc3+ {[%clk 0:03:02]} 9. Nd2 {[%clk 0:02:59]}  Bxe5 {[%clk 0:03:03]} 10. g3 {[%clk 0:02:44]}  Nf6 {[%clk 0:03:02]} 11. Bg2 {[%clk 0:02:42]}  O-O {[%clk 0:03:01]} 12. O-O {[%clk 0:02:43]}  d5 {[%clk 0:02:59]} 13. Nf3 {[%clk 0:02:41]}  Bc3 {[%clk 0:02:59]} 14. Qd3 {[%clk 0:02:37]}  Ba5 {[%clk 0:02:57]} 15. c4 {[%clk 0:02:25]}  dxc4 {[%clk 0:02:54]} 16. Qxc4 {[%clk 0:02:26]}  Be6 {[%clk 0:02:54]} 17. Qa4 {[%clk 0:02:21]}  Bb6 {[%clk 0:02:51]} 18. Ng5 {[%clk 0:02:18]}  Bf5 {[%clk 0:02:48]} 19. e4 {[%clk 0:02:14]}  Bg6 {[%clk 0:02:41]} 20. e5 {[%clk 0:02:09]}  Nxe5 {[%clk 0:02:38]} 21. Bxb7 {[%clk 0:01:57]}  Rab8 {[%clk 0:02:34]} 22. Be4 {[%clk 0:01:52]}  Nxe4 {[%clk 0:02:27]} 23. Nxe4 {[%clk 0:01:53]}  f5 {[%clk 0:02:17]} 24. Ng5 {[%clk 0:01:47]}  f4 {[%clk 0:02:16]} 25. Rbd1 {[%clk 0:01:37]}  fxg3 {[%clk 0:02:13]} 26. hxg3 {[%clk 0:01:35]}  h6 {[%clk 0:01:58]} 27. Ne6 {[%clk 0:01:27]}  Rf7 {[%clk 0:01:30]} 28. Nf4 {[%clk 0:01:26]}  Bf5 {[%clk 0:01:19]} 29. Rd5 {[%clk 0:01:22]}  Nf3+ {[%clk 0:01:16]} 30. Kg2 {[%clk 0:01:20]}  Ng5 {[%clk 0:01:16]} 31. Re1 {[%clk 0:01:07]}  Kh7 {[%clk 0:01:10]} 32. Rde5 {[%clk 0:00:56]}  Rbf8 {[%clk 0:01:07]} 33. Re8 {[%clk 0:00:53]}  Rxe8 {[%clk 0:00:43]} 34. Rxe8 {[%clk 0:00:54]}  Bd7 {[%clk 0:00:40]} 35. Qc2+ {[%clk 0:00:49]}  Bf5 {[%clk 0:00:39]} 36. Qc6 {[%clk 0:00:42]}  Bd7 {[%clk 0:00:38]} 37. Qa8 {[%clk 0:00:40]}  Bxe8 {[%clk 0:00:31]} 38. Qxe8 {[%clk 0:00:41]}  Rf6 {[%clk 0:00:31]} 39. a4 {[%clk 0:00:30]}  a5 {[%clk 0:00:30]} 40. Qd7 {[%clk 0:00:26]}  Kg8 {[%clk 0:00:29]} 41. Qd8+ {[%clk 0:00:26]}  Kh7 {[%clk 0:00:29]} 42. Qd3+ {[%clk 0:00:23]}  Kg8 {[%clk 0:00:29]} 43. Qe2 {[%clk 0:00:19]}  Kh7 {[%clk 0:00:29]} 44. f3 {[%clk 0:00:16]}  Kg8 {[%clk 0:00:28]} 45. Qe8+ {[%clk 0:00:10]}  Kh7 {[%clk 0:00:27]} 46. Qe7 {[%clk 0:00:10]}  Kg8 {[%clk 0:00:25]} 47. Nd5 {[%clk 0:00:06]}  Rxf3 {[%clk 0:00:24]} 48. Nxb6 {[%clk 0:00:06]}  cxb6 {[%clk 0:00:23]} 49. Qd8+ {[%clk 0:00:07]}  Kh7 {[%clk 0:00:23]} 50. Qxb6 {[%clk 0:00:08]}  Rf5 {[%clk 0:00:23]} 51. Qb1 {[%clk 0:00:08]}  g6 {[%clk 0:00:21]} 52. Qb7+ {[%clk 0:00:09]}  Rf7 {[%clk 0:00:21]} 53. Qb6 {[%clk 0:00:09]}  Rf5 {[%clk 0:00:20]} 54. Qc7+ {[%clk 0:00:10]}  Nf7 {[%clk 0:00:20]} 55. g4 {[%clk 0:00:09]}  Rf6 {[%clk 0:00:19]} 56. Qxa5 {[%clk 0:00:09]}  Kg7 {[%clk 0:00:19]} 57. Qc3 {[%clk 0:00:09]}  Ng5 {[%clk 0:00:19]} 58. a5 {[%clk 0:00:08]}  Kf7 {[%clk 0:00:19]} 59. Qc7+ {[%clk 0:00:08]}  Ke6 {[%clk 0:00:19]} 60. a6 {[%clk 0:00:07]}  Ne4 {[%clk 0:00:19]} 61. a7 {[%clk 0:00:06]}  Rf2+ {[%clk 0:00:19]} 62. Kg1 {[%clk 0:00:07]}  Ra2 {[%clk 0:00:18]} 63. Qc4+ {[%clk 0:00:07]}  Ke5 {[%clk 0:00:17]} 64. Qxa2 {[%clk 0:00:08]}  h5 {[%clk 0:00:17]} 65. a8=Q {[%clk 0:00:09]}  Kf4 {[%clk 0:00:17]} 66. Qxe4+ {[%clk 0:00:09]}  Kxe4 {[%clk 0:00:17]} 67. Qc2+ {[%clk 0:00:10]}  Kf4 {[%clk 0:00:17]} 68. Qxg6 {[%clk 0:00:11]}  hxg4 {[%clk 0:00:18]} 69. Kg2 {[%clk 0:00:11]}  g3 {[%clk 0:00:18]} 70. Qxg3+ {[%clk 0:00:11]}  Kf5 {[%clk 0:00:17]} 71. Qf3+ {[%clk 0:00:12]}  Kg6 {[%clk 0:00:17]} 72. Kf2 {[%clk 0:00:13]}  Kh7 {[%clk 0:00:18]} 73. Qe3 {[%clk 0:00:14]}  Kg6 {[%clk 0:00:18]} 74. Ke2 {[%clk 0:00:15]}  Kh5 {[%clk 0:00:19]} 75. Kd3 {[%clk 0:00:16]}  Kg4 {[%clk 0:00:19]} 76. Kd4 {[%clk 0:00:17]}  Kh4 {[%clk 0:00:19]} 77. Qe4+ {[%clk 0:00:17]}  Kh5 {[%clk 0:00:19]} 78. Qe5+ {[%clk 0:00:18]}  Kg6 {[%clk 0:00:20]} 79. Kd5 {[%clk 0:00:18]}  Kf7 {[%clk 0:00:21]} 80. Qe6+ {[%clk 0:00:19]}  Kf8 {[%clk 0:00:21]} 81. Kd6 {[%clk 0:00:19]}  Kg7 {[%clk 0:00:22]} 82. Qf5 {[%clk 0:00:20]}  Kh8 {[%clk 0:00:23]} 83. Qg5 {[%clk 0:00:20]}  Kh7 {[%clk 0:00:23]} 84. Ke7 {[%clk 0:00:21]}  Kh8 {[%clk 0:00:24]} 85. Kf7 {[%clk 0:00:22]}  Kh7 {[%clk 0:00:25]} 86. Qg7# {[%clk 0:00:23]} 1-0

[Event "December 19 Late 2023"]
[Site "https://www.chess.com"]
[Date "2023.12.19"]
[Round "2"]
[White "Pert, Nina"]
[Black "Petukhov, Dmitry"]
[Result "0-1"]
[Board "155"]
[TimeControl "180+1"]
[WhiteFideId "456853"]
[BlackFideId "4142748"]
[WhiteElo "1726"]
[BlackElo "2269"]
[WhiteTeam "ENG"]
[BlackTeam "RUS"]
[WhiteClock "0:00:00"]
[BlackClock "0:00:40"]

1. e4 {[%clk 0:03:00]}  c5 {[%clk 0:02:59]} 2. Nf3 {[%clk 0:03:00]}  d6 {[%clk 0:02:59]} 3. d4 {[%clk 0:03:00]}  cxd4 {[%clk 0:03:00]} 4. Nxd4 {[%clk 0:03:00]}  Nf6 {[%clk 0:03:00]} 5. Nc3 {[%clk 0:02:59]}  Nc6 {[%clk 0:03:00]} 6. Be3 {[%clk 0:02:50]}  Ng4 {[%clk 0:02:57]} 7. Bc1 {[%clk 0:02:44]}  Qb6 {[%clk 0:02:56]} 8. h3 {[%clk 0:02:31]}  Nxf2 {[%clk 0:02:55]} 9. Kxf2 {[%clk 0:02:28]}  Qxd4+ {[%clk 0:02:53]} 10. Qxd4 {[%clk 0:02:27]}  Nxd4 {[%clk 0:02:53]} 11. Bd3 {[%clk 0:02:27]}  Bd7 {[%clk 0:02:42]} 12. Nd5 {[%clk 0:02:25]}  O-O-O {[%clk 0:02:33]} 13. Be3 {[%clk 0:02:23]}  Nc6 {[%clk 0:02:33]} 14. Bxa7 {[%clk 0:02:22]}  Nxa7 {[%clk 0:02:32]} 15. a4 {[%clk 0:02:16]}  e6 {[%clk 0:02:31]} 16. Ne3 {[%clk 0:02:13]}  Nc6 {[%clk 0:02:25]} 17. c3 {[%clk 0:02:11]}  Ne5 {[%clk 0:02:24]} 18. Bc2 {[%clk 0:02:09]}  Bc6 {[%clk 0:02:22]} 19. b4 {[%clk 0:02:08]}  Be7 {[%clk 0:02:19]} 20. b5 {[%clk 0:02:06]}  Bd7 {[%clk 0:02:19]} 21. Rhb1 {[%clk 0:02:04]}  b6 {[%clk 0:02:16]} 22. a5 {[%clk 0:02:04]}  bxa5 {[%clk 0:02:16]} 23. Rxa5 {[%clk 0:02:05]}  Kb7 {[%clk 0:02:16]} 24. Ra4 {[%clk 0:01:38]}  Rc8 {[%clk 0:02:11]} 25. c4 {[%clk 0:01:37]}  Ra8 {[%clk 0:02:10]} 26. Rab4 {[%clk 0:01:36]}  d5 {[%clk 0:02:04]} 27. R4b2 {[%clk 0:01:21]}  Nxc4 {[%clk 0:02:01]} 28. Nxc4 {[%clk 0:01:20]}  dxc4 {[%clk 0:02:02]} 29. e5 {[%clk 0:01:19]}  Kb6 {[%clk 0:01:59]} 30. Be4 {[%clk 0:01:16]}  Ra5 {[%clk 0:01:58]} 31. Rd2 {[%clk 0:01:14]}  Bxb5 {[%clk 0:01:45]} 32. Rd7 {[%clk 0:01:11]}  Bc5+ {[%clk 0:01:43]} 33. Kf3 {[%clk 0:01:11]}  Ra3+ {[%clk 0:01:36]} 34. Ke2 {[%clk 0:00:54]}  Rb3 {[%clk 0:01:37]} 35. Rb7+ {[%clk 0:00:53]}  Ka5 {[%clk 0:01:37]} 36. Ra1+ {[%clk 0:00:50]}  Kb4 {[%clk 0:01:37]} 37. Bc6 {[%clk 0:00:49]}  Kc3 {[%clk 0:01:22]} 38. Bxb5 {[%clk 0:00:45]}  Kd4 {[%clk 0:01:21]} 39. Rd1+ {[%clk 0:00:43]}  Kxe5 {[%clk 0:01:21]} 40. Rdd7 {[%clk 0:00:29]}  Ra8 {[%clk 0:01:19]} 41. Bxc4 {[%clk 0:00:19]}  Ra2+ {[%clk 0:01:18]} 42. Kf1 {[%clk 0:00:19]}  Rf2+ {[%clk 0:01:13]} 43. Ke1 {[%clk 0:00:19]}  Rc3 {[%clk 0:01:02]} 44. Bb5 {[%clk 0:00:06]}  Rc1+ {[%clk 0:01:01]} 45. Rd1 {[%clk 0:00:07]}  Rxd1+ {[%clk 0:00:57]} 46. Kxd1 {[%clk 0:00:07]}  Kf6 {[%clk 0:00:55]} 47. Be8 {[%clk 0:00:06]}  Be7 {[%clk 0:00:55]} 48. g4 {[%clk 0:00:05]}  Rf3 {[%clk 0:00:55]} 49. g5+ {[%clk 0:00:05]}  Kg6 {[%clk 0:00:54]} 50. Rxe7 {[%clk 0:00:06]}  Kxg5 {[%clk 0:00:42]} 51. Rxf7 {[%clk 0:00:03]}  Rf2 {[%clk 0:00:42]} 52. Rf3 {[%clk 0:00:02]}  Rxf3 {[%clk 0:00:41]} 53. Bd7 {[%clk 0:00:00]}  Kf6 {[%clk 0:00:40]} 0-1

[Event "December 19 Late 2023"]
[Site "https://www.chess.com"]
[Date "2023.12.19"]
[Round "2"]
[White "Clarke, Matthew"]
[Black "Bazilius, Augustinas"]
[Result "0-1"]
[Board "157"]
[TimeControl "180+1"]
[WhiteFideId "3227804"]
[BlackFideId "12832251"]
[WhiteElo "2026"]
[BlackElo "2082"]
[WhiteTeam "AUS"]
[BlackTeam "LTU"]
[WhiteClock "0:00:03"]
[BlackClock "0:00:05"]

1. d4 {[%clk 0:03:00]}  Nf6 {[%clk 0:02:58]} 2. c4 {[%clk 0:03:01]}  c5 {[%clk 0:02:58]} 3. d5 {[%clk 0:03:00]}  b5 {[%clk 0:02:59]} 4. cxb5 {[%clk 0:03:00]}  a6 {[%clk 0:03:00]} 5. bxa6 {[%clk 0:03:00]}  g6 {[%clk 0:02:59]} 6. Nc3 {[%clk 0:03:00]}  Bg7 {[%clk 0:02:58]} 7. e4 {[%clk 0:02:59]}  O-O {[%clk 0:02:59]} 8. Nf3 {[%clk 0:02:54]}  Qa5 {[%clk 0:02:39]} 9. Bd2 {[%clk 0:02:29]}  Bxa6 {[%clk 0:02:27]} 10. Bxa6 {[%clk 0:02:02]}  Qxa6 {[%clk 0:02:28]} 11. Qe2 {[%clk 0:02:00]}  Qxe2+ {[%clk 0:02:26]} 12. Kxe2 {[%clk 0:02:01]}  d6 {[%clk 0:02:27]} 13. Rhb1 {[%clk 0:01:40]}  Na6 {[%clk 0:02:17]} 14. Ne1 {[%clk 0:01:38]}  Rfb8 {[%clk 0:02:17]} 15. Nc2 {[%clk 0:01:27]}  Nb4 {[%clk 0:02:05]} 16. Ne3 {[%clk 0:01:25]}  e6 {[%clk 0:01:50]} 17. a3 {[%clk 0:01:11]}  Na6 {[%clk 0:01:34]} 18. b4 {[%clk 0:01:08]}  exd5 {[%clk 0:01:21]} 19. exd5 {[%clk 0:01:07]}  cxb4 {[%clk 0:01:13]} 20. axb4 {[%clk 0:01:07]}  Nc7 {[%clk 0:01:13]} 21. Rxa8 {[%clk 0:01:05]}  Rxa8 {[%clk 0:01:14]} 22. b5 {[%clk 0:01:05]}  Kf8 {[%clk 0:01:08]} 23. b6 {[%clk 0:01:04]}  Na6 {[%clk 0:01:08]} 24. Nc4 {[%clk 0:00:56]}  Ke7 {[%clk 0:01:03]} 25. Na5 {[%clk 0:00:55]}  Kd7 {[%clk 0:00:55]} 26. b7 {[%clk 0:00:53]}  Re8+ {[%clk 0:00:54]} 27. Kd1 {[%clk 0:00:47]}  Kc7 {[%clk 0:00:39]} 28. Nb5+ {[%clk 0:00:44]}  Kd7 {[%clk 0:00:32]} 29. Nc3 {[%clk 0:00:36]}  Kc7 {[%clk 0:00:32]} 30. Nc6 {[%clk 0:00:32]}  Nxd5 {[%clk 0:00:30]} 31. Nxd5+ {[%clk 0:00:20]}  Kxc6 {[%clk 0:00:30]} 32. Rb6+ {[%clk 0:00:13]}  Kxd5 {[%clk 0:00:26]} 33. Rxa6 {[%clk 0:00:14]}  Rb8 {[%clk 0:00:26]} 34. Rb6 {[%clk 0:00:15]}  Bd4 {[%clk 0:00:22]} 35. Rb3 {[%clk 0:00:13]}  Bc5 {[%clk 0:00:23]} 36. Be3 {[%clk 0:00:02]}  Kc6 {[%clk 0:00:20]} 37. Bxc5 {[%clk 0:00:01]}  dxc5 {[%clk 0:00:21]} 38. Rh3 {[%clk 0:00:02]}  h5 {[%clk 0:00:21]} 39. Rf3 {[%clk 0:00:02]}  Rxb7 {[%clk 0:00:21]} 40. Rf6+ {[%clk 0:00:03]}  Kd5 {[%clk 0:00:21]} 41. Kc2 {[%clk 0:00:04]}  Ke5 {[%clk 0:00:22]} 42. Rc6 {[%clk 0:00:04]}  Kd5 {[%clk 0:00:22]} 43. Rf6 {[%clk 0:00:04]}  Ra7 {[%clk 0:00:20]} 44. Kb2 {[%clk 0:00:04]}  Kc4 {[%clk 0:00:18]} 45. Rf3 {[%clk 0:00:02]}  Re7 {[%clk 0:00:17]} 46. h4 {[%clk 0:00:02]}  Kd5 {[%clk 0:00:16]} 47. Kc3 {[%clk 0:00:02]}  Kd6 {[%clk 0:00:15]} 48. Kc4 {[%clk 0:00:02]}  Re4+ {[%clk 0:00:15]} 49. Kc3 {[%clk 0:00:02]}  Ke6 {[%clk 0:00:14]} 50. g3 {[%clk 0:00:03]}  Ra4 {[%clk 0:00:10]} 51. Re3+ {[%clk 0:00:03]}  Kf6 {[%clk 0:00:03]} 52. Rf3+ {[%clk 0:00:04]}  Kg7 {[%clk 0:00:04]} 53. Kb3 {[%clk 0:00:04]}  Re4 {[%clk 0:00:03]} 54. Kc3 {[%clk 0:00:04]}  f5 {[%clk 0:00:03]} 55. Kb3 {[%clk 0:00:04]}  Kf6 {[%clk 0:00:03]} 56. Kc3 {[%clk 0:00:04]}  Ke5 {[%clk 0:00:03]} 57. Rd3 {[%clk 0:00:05]}  Rd4 {[%clk 0:00:02]} 58. Rf3 {[%clk 0:00:02]}  Ra4 {[%clk 0:00:02]} 59. Kb3 {[%clk 0:00:02]}  Re4 {[%clk 0:00:03]} 60. Kc3 {[%clk 0:00:03]}  Re2 {[%clk 0:00:03]} 61. Kd3 {[%clk 0:00:03]}  Ra2 {[%clk 0:00:03]} 62. Re3+ {[%clk 0:00:03]}  Kd5 {[%clk 0:00:03]} 63. Re8 {[%clk 0:00:01]}  Rxf2 {[%clk 0:00:03]} 64. Ke3 {[%clk 0:00:01]}  Rc2 {[%clk 0:00:01]} 65. Rg8 {[%clk 0:00:02]}  Rc3+ {[%clk 0:00:01]} 66. Kf4 {[%clk 0:00:02]}  Rc4+ {[%clk 0:00:02]} 67. Kf3 {[%clk 0:00:01]}  Rg4 {[%clk 0:00:03]} 68. Rd8+ {[%clk 0:00:01]}  Kc4 {[%clk 0:00:04]} 69. Rd6 {[%clk 0:00:02]}  Kc3 {[%clk 0:00:04]} 70. Rc6 {[%clk 0:00:02]}  c4 {[%clk 0:00:04]} 71. Rc8 {[%clk 0:00:03]}  Kc2 {[%clk 0:00:03]} 72. Rc5 {[%clk 0:00:04]}  c3 {[%clk 0:00:04]} 73. Rc8 {[%clk 0:00:05]}  Kb2 {[%clk 0:00:04]} 74. Rc7 {[%clk 0:00:05]}  c2 {[%clk 0:00:04]} 75. Rb7+ {[%clk 0:00:06]}  Kc1 {[%clk 0:00:04]} 76. Rc7 {[%clk 0:00:06]}  Kb2 {[%clk 0:00:05]} 77. Rb7+ {[%clk 0:00:03]}  Kc3 {[%clk 0:00:05]} 0-1

[Event "December 19 Late 2023"]
[Site "https://www.chess.com"]
[Date "2023.12.19"]
[Round "2"]
[White "Rose, Felix"]
[Black "Thorhallsson, Simon"]
[Result "1-0"]
[Board "163"]
[TimeControl "180+1"]
[WhiteFideId "5105722"]
[BlackFideId "2310090"]
[WhiteElo "2039"]
[BlackElo "2123"]
[WhiteTeam "MEX"]
[BlackTeam "ISL"]
[WhiteClock "0:00:20"]
[BlackClock "0:00:02"]

1. e4 {[%clk 0:03:00]}  c5 {[%clk 0:02:56]} 2. Nf3 {[%clk 0:03:00]}  d6 {[%clk 0:02:57]} 3. d4 {[%clk 0:03:00]}  cxd4 {[%clk 0:02:58]} 4. Nxd4 {[%clk 0:03:01]}  Nf6 {[%clk 0:02:58]} 5. Nc3 {[%clk 0:03:01]}  a6 {[%clk 0:02:58]} 6. Be3 {[%clk 0:03:00]}  e5 {[%clk 0:02:58]} 7. Nb3 {[%clk 0:03:00]}  Be7 {[%clk 0:02:58]} 8. f3 {[%clk 0:03:01]}  O-O {[%clk 0:02:58]} 9. Qd2 {[%clk 0:03:02]}  Be6 {[%clk 0:02:58]} 10. O-O-O {[%clk 0:03:02]}  a5 {[%clk 0:02:59]} 11. a4 {[%clk 0:03:00]}  Nc6 {[%clk 0:02:58]} 12. g4 {[%clk 0:02:52]}  Nb4 {[%clk 0:02:57]} 13. g5 {[%clk 0:02:51]}  Nh5 {[%clk 0:02:54]} 14. Kb1 {[%clk 0:02:48]}  Rc8 {[%clk 0:02:50]} 15. Bb5 {[%clk 0:02:44]}  Qc7 {[%clk 0:02:16]} 16. h4 {[%clk 0:02:34]}  Rfd8 {[%clk 0:02:16]} 17. Qf2 {[%clk 0:02:21]}  d5 {[%clk 0:01:25]} 18. Bb6 {[%clk 0:02:18]}  Qb8 {[%clk 0:01:25]} 19. Bxd8 {[%clk 0:02:01]}  Rxd8 {[%clk 0:01:25]} 20. exd5 {[%clk 0:01:55]}  Nxd5 {[%clk 0:01:24]} 21. Nxd5 {[%clk 0:01:51]}  Bxd5 {[%clk 0:01:25]} 22. c4 {[%clk 0:01:45]}  Be6 {[%clk 0:01:20]} 23. Qb6 {[%clk 0:01:44]}  Bf5+ {[%clk 0:00:55]} 24. Ka2 {[%clk 0:01:40]}  Bc2 {[%clk 0:00:46]} 25. Rd7 {[%clk 0:01:31]}  Rxd7 {[%clk 0:00:42]} 26. Bxd7 {[%clk 0:01:31]}  Bd8 {[%clk 0:00:37]} 27. Qb5 {[%clk 0:01:27]}  Qd6 {[%clk 0:00:30]} 28. Bg4 {[%clk 0:01:25]}  g6 {[%clk 0:00:24]} 29. Bxh5 {[%clk 0:01:18]}  gxh5 {[%clk 0:00:25]} 30. Re1 {[%clk 0:01:12]}  Bc7 {[%clk 0:00:18]} 31. Nc5 {[%clk 0:01:03]}  Qd2 {[%clk 0:00:17]} 32. Ra1 {[%clk 0:00:51]}  b6 {[%clk 0:00:15]} 33. Ne4 {[%clk 0:00:46]}  Qd3 {[%clk 0:00:13]} 34. Nf6+ {[%clk 0:00:41]}  Kg7 {[%clk 0:00:12]} 35. Ne8+ {[%clk 0:00:39]}  Kf8 {[%clk 0:00:12]} 36. Nxc7 {[%clk 0:00:39]}  Qxf3 {[%clk 0:00:03]} 37. Qxb6 {[%clk 0:00:37]}  Qd3 {[%clk 0:00:02]} 38. Qc5+ {[%clk 0:00:29]}  Kg7 {[%clk 0:00:02]} 39. Qxe5+ {[%clk 0:00:29]}  Kg8 {[%clk 0:00:01]} 40. Qe8+ {[%clk 0:00:27]}  Kg7 {[%clk 0:00:02]} 41. Qe5+ {[%clk 0:00:27]}  Kg8 {[%clk 0:00:02]} 42. Qc3 {[%clk 0:00:28]}  Qf5 {[%clk 0:00:02]} 43. Re1 {[%clk 0:00:25]}  Bxa4 {[%clk 0:00:02]} 44. Ne8 {[%clk 0:00:20]}  Bxe8 {[%clk 0:00:02]} 45. Rxe8# {[%clk 0:00:20]} 1-0